bitfinex/quotes_ETHUSD_20260114
["timestamp","ask_amount","ask_price","bid_price","bid_amount"]
[1768396605169,0.99239982,3294.9,3294.1,4.41916609]
[1768396605364,1.77634659,3294.9,3294.1,4.41916609]
[1768396605983,4.02750168,3294.8,3294.1,3.45169891]
[1768396607956,4.02750168,3294.8,3292.8,3.28192697]
[1768396607957,0.14975285,3294.5,3293.6,0.81771433]
[1768396608294,6.07053966,3294.6,3293.6,0.81771433]
[1768396608650,6.22029251,3294.6,3293.6,0.81771433]
[1768396608849,6.22029251,3294.6,3293.6,1.23371433]
[1768396608850,0.14975285,3294.5,3293.6,1.23371433]
[1768396610089,6.0709082,3294.4,3294.0,0.001]
[1768396610265,0.6220661,3294.3,3294.0,0.001]
[1768396612172,3.03563839,3294.2,3294.0,0.001]
[1768396613697,6.07127678,3294.2,3293.5,0.95793119]
[1768396613906,0.14975285,3294.1,3292.8,0.95793119]
[1768396614079,1.17912626,3294.1,3292.9,0.95793119]
[1768396614399,9.1074681,3294.0,3292.9,0.95793119]
[1768396614811,0.14975285,3293.9,3292.9,0.95793119]
[1768396614971,0.14975285,3293.9,3292.6,0.95793119]
[1768396615171,0.14975285,3293.9,3292.7,0.416]
[1768396615496,0.14975285,3293.7,3292.7,1.37393119]
[1768396615689,0.9257221,3293.8,3292.8,0.95793119]
[1768396615892,0.14975285,3293.7,3292.8,0.95793119]
[1768396616799,6.0723828,3293.6,3292.8,0.95793119]
[1768396619105,6.07219842,3293.7,3292.8,0.95793119]
[1768396619305,0.71476734,3293.6,3292.8,0.95793119]
[1768396621314,3.03628358,3293.5,3292.8,0.95793119]
[1768396621495,6.07256716,3293.5,3292.8,0.95793119]
[1768396622208,6.07256716,3293.5,3293.1,0.001]
[1768396624207,3.03628358,3293.5,3293.1,0.001]
[1768396627216,6.07256716,3293.5,3293.1,0.001]
[1768396627418,6.43174271,3293.5,3293.1,0.001]
[1768396627620,3.39545913,3293.5,3293.1,0.001]
[1768396628312,6.43174271,3293.5,3293.1,0.001]
[1768396628515,3.39545913,3293.5,3293.1,0.001]
[1768396628920,0.002,3294.2,3293.4,0.95693119]
[1768396629123,0.002,3294.2,3293.7,0.95793119]
[1768396629322,3.03767336,3294.2,3293.7,0.95793119]
[1768396629495,0.002,3294.2,3293.7,0.95793119]
[1768396635033,0.98355229,3294.1,3293.0,0.95793119]
[1768396635332,5.53356062,3294.2,3293.0,0.95793119]
[1768396635333,0.98355229,3293.9,3293.4,0.001]
[1768396636604,0.98355229,3293.9,3292.7,0.95793119]
[1768396636810,0.98355229,3293.9,3292.9,0.416]
[1768396637129,0.98355229,3293.7,3292.9,0.416]
[1768396637306,0.70555664,3293.6,3292.9,0.416]
[1768396638130,0.70555664,3293.6,3292.9,1.37393119]
[1768396641119,3.03628358,3293.5,3293.0,0.416]
[1768396642433,0.415,3294.0,3293.1,0.99289642]
[1768396642601,0.002,3294.2,3293.4,0.99289642]
[1768396642803,0.002,3294.2,3293.6,0.99289642]
[1768396643202,3.03767602,3294.2,3293.6,0.99289642]
[1768396643527,6.07335204,3294.2,3293.6,0.99289642]
[1768396643730,6.68068724,3294.2,3293.6,0.99289642]
[1768396644731,3.03767602,3294.2,3293.6,1.40889642]
[1768396645938,6.07335204,3294.2,3293.6,1.40889642]
[1768396647341,0.002,3294.2,3293.6,1.40889642]
[1768396647640,0.002,3293.9,3293.6,1.40889642]
[1768396648051,0.002,3293.9,3293.7,0.99289642]
[1768396648221,0.002,3293.9,3293.7,1.43740801]
[1768396648421,0.002,3293.9,3293.7,0.99289642]
[1768396648732,0.002,3294.2,3293.9,0.99289642]
[1768396649038,0.002,3294.5,3294.1,0.99289642]
[1768396649243,0.002,3294.5,3294.2,0.99289642]
[1768396652358,0.002,3294.5,3294.3,0.99289642]
[1768396653654,0.002,3294.5,3294.3,4.02844073]
[1768396653853,0.002,3294.5,3294.4,0.99289642]
[1768396654759,3.03480926,3295.1,3294.5,0.99289642]
[1768396655052,3.03480926,3295.1,3294.6,0.99289642]
[1768396655053,0.35911525,3295.0,3294.6,0.99289642]
[1768396655922,3.39404855,3295.0,3294.6,0.99289642]
[1768396656751,3.03674459,3295.2,3294.6,0.99289642]
[1768396656752,3.03481528,3295.1,3294.6,0.99289642]
[1768396657456,0.002,3295.4,3294.9,0.99289642]
[1768396657749,0.002,3295.4,3295.1,0.99289642]
[1768396658049,0.002,3295.4,3295.1,4.02770106]
[1768396658658,0.002,3295.4,3295.2,0.99289642]
[1768396659347,0.002,3295.4,3295.0,1.40889642]
[1768396659650,0.002,3295.4,3295.1,4.02769385]
[1768396659965,0.002,3295.4,3295.1,0.99289642]
[1768396660846,0.002,3295.4,3295.1,4.02767984]
[1768396661034,0.002,3295.4,3295.1,0.99289642]
[1768396661235,0.002,3295.4,3295.1,4.02769301]
[1768396661630,0.002,3295.4,3295.2,0.99289642]
[1768396661831,0.002,3295.7,3295.3,0.99289642]
[1768396662035,0.002,3295.7,3295.4,1.40889642]
[1768396665249,0.002,3295.7,3295.4,0.416]
[1768396665554,0.002,3295.7,3295.3,0.416]
[1768396665936,0.002,3295.7,3295.3,3.45061599]
[1768396666256,0.002,3295.7,3294.9,0.99389642]
[1768396666562,0.002,3295.7,3295.0,1.40889642]
[1768396667328,0.70362883,3295.7,3295.0,1.40889642]
[1768396668028,6.06869764,3295.6,3294.7,0.99289642]
[1768396668228,6.06869764,3295.6,3294.8,4.44397731]
[1768396668448,6.06869764,3295.6,3294.8,0.99289642]
[1768396668730,6.06869764,3295.6,3294.9,1.40889642]
[1768396668931,6.84034231,3295.6,3294.9,1.40889642]
[1768396671162,0.97565056,3295.5,3294.7,2.8851574]
[1768396671455,0.97565056,3295.5,3294.6,4.01722487]
[1768396671655,0.97565056,3295.5,3294.9,0.001]
[1768396671865,0.002,3295.3,3294.9,0.001]
[1768396672345,0.97765056,3295.3,3294.9,0.001]
[1768396672741,0.97765056,3295.3,3294.6,0.83038375]
[1768396672948,0.97765056,3295.3,3294.7,0.416]
[1768396673372,3.03471716,3295.2,3294.7,0.416]
[1768396673534,3.73942343,3295.2,3294.7,0.416]
[1768396673936,3.73942343,3295.2,3294.7,1.39798963]
[1768396674653,3.73942343,3295.2,3294.7,4.4331555]
[1768396674871,3.03666393,3295.3,3294.7,4.4331555]
[1768396675038,3.03666393,3295.3,3294.7,1.39798963]
[1768396675241,0.002,3295.3,3294.8,0.98198963]
[1768396675658,0.002,3295.3,3294.8,4.01699867]
[1768396675848,0.002,3295.3,3294.9,0.98198963]
[1768396676873,0.002,3295.3,3294.9,0.416]
[1768396677066,0.30564863,3295.3,3294.9,0.416]
[1768396677266,3.03471716,3295.2,3294.7,0.98198963]
[1768396677443,0.30564863,3295.3,3294.7,0.98198963]
[1768396677444,3.03665578,3295.3,3294.7,0.98198963]
[1768396677647,3.03665578,3295.3,3294.7,4.01715276]
[1768396677850,3.03665578,3295.3,3294.7,4.43315129]
[1768396678169,3.74133318,3295.3,3294.7,4.43315129]
[1768396678735,0.7066774,3295.3,3294.7,4.43315129]
[1768396680570,0.7066774,3295.3,3294.7,4.46350306]
[1768396680771,3.74131023,3295.3,3294.7,4.43315129]
[1768396680939,3.74131023,3295.3,3294.8,0.98198963]
[1768396681139,0.37413102,3295.2,3294.7,3.45116166]
[1768396682373,4.38453957,3295.2,3294.6,2.88523845]
[1768396682675,1.34978158,3295.2,3294.7,3.0351738]
[1768396684177,1.34978158,3295.2,3294.6,3.03526983]
[1768396684476,4.38453909,3295.2,3294.5,3.45131663]
[1768396684777,0.74211721,3295.1,3294.5,0.416]
[1768396685008,1.71776777,3295.1,3294.5,0.416]
[1768396685774,0.97565056,3295.0,3294.5,0.416]
[1768396686139,4.01062924,3295.0,3294.5,0.416]
[1768396689688,3.03497868,3295.0,3294.5,0.416]
[1768396693900,3.03497868,3295.0,3294.5,3.45133913]
[1768396694197,3.03485471,3295.1,3294.5,3.45133913]
[1768396694388,3.03485471,3295.1,3294.5,4.43332876]
[1768396695398,3.40888321,3295.2,3294.5,4.43332876]
[1768396695701,3.40888321,3295.2,3294.6,0.98198963]
[1768396696604,0.002,3294.8,3294.6,0.98198963]
[1768396697998,0.002,3294.8,3294.6,4.01724943]
[1768396698170,0.002,3294.8,3294.7,0.98198963]
[1768396698585,0.002,3295.1,3294.7,0.98198963]
[1768396698998,0.60932588,3295.1,3294.7,0.98198963]
[1768396700506,3.64418047,3295.1,3294.6,3.45126794]
[1768396700804,0.60932588,3295.1,3294.6,3.45126794]
[1768396700971,0.002,3295.1,3294.7,0.93701527]
[1768396703035,0.002,3295.3,3294.9,0.93701527]
[1768396703197,0.002,3295.6,3295.0,0.93701527]
[1768396703702,0.002,3295.6,3295.1,0.93701527]
[1768396703909,0.002,3295.8,3295.6,0.93701527]
[1768396704416,0.002,3295.8,3295.5,0.416]
[1768396706023,0.002,3296.0,3295.6,0.93701527]
[1768396707226,3.03570706,3296.3,3295.7,0.93701527]
[1768396708229,0.002,3296.3,3295.8,0.93701527]
[1768396710330,0.002,3296.0,3295.8,0.93701527]
[1768396710510,0.002,3296.3,3295.8,0.93701527]
[1768396710822,0.002,3296.3,3295.8,3.97116028]
[1768396711028,0.002,3296.3,3295.8,4.44250438]
[1768396711532,0.002,3296.3,3295.8,1.40835937]
[1768396712231,0.002,3296.3,3295.8,4.44251674]
[1768396714139,0.002,3296.3,3295.9,0.93701527]
[1768396714312,3.95934892,3296.8,3296.0,6.87872996]
[1768396714512,3.03333078,3296.8,3296.1,3.9709038]
[1768396714836,6.06663873,3296.8,3296.1,0.93701527]
[1768396715236,6.0666159,3296.8,3296.1,0.93701527]
[1768396715406,0.92601814,3296.7,3296.1,0.416]
[1768396715731,0.92601814,3296.6,3295.9,0.416]
[1768396715933,1.62528154,3296.7,3295.9,0.93701527]
[1768396716116,1.62528154,3296.7,3295.9,1.35301527]
[1768396716504,3.03342838,3296.6,3295.9,4.38708676]
[1768396717115,3.95939502,3296.7,3295.9,4.38708676]
[1768396717341,3.03337688,3296.7,3296.0,0.93701527]
[1768396717838,3.03337688,3296.7,3296.1,0.93701527]
[1768396718740,3.03324435,3296.8,3296.1,3.97086634]
[1768396719264,3.95926249,3296.8,3296.1,3.97086634]
[1768396719569,3.95926249,3296.8,3296.1,3.03385107]
[1768396720434,3.03324435,3296.8,3296.1,3.97086634]
[1768396720619,3.03324435,3296.8,3296.2,0.93701527]
[1768396721412,3.03324435,3296.8,3296.1,3.03385107]
[1768396722242,0.92601814,3296.7,3295.7,0.93701527]
[1768396722444,0.92601814,3296.7,3296.0,0.416]
[1768396722943,0.002,3296.5,3296.0,0.416]
[1768396724754,0.002,3296.5,3296.0,3.44997747]
[1768396725345,0.002,3296.5,3296.0,0.416]
[1768396726336,0.08702756,3297.0,3296.0,0.416]
[1768396726337,0.002,3297.0,3296.5,0.93701527]
[1768396726539,0.002,3297.0,3296.5,1.35301527]
[1768396726736,0.002,3297.0,3296.5,0.416]
[1768396727543,0.002,3297.0,3296.6,0.93701527]
[1768396727955,3.03261548,3297.5,3296.9,0.93701527]
[1768396728822,6.06509818,3297.6,3296.9,0.93701527]
[1768396729025,6.81441257,3297.6,3296.9,0.93701527]
[1768396730542,0.08502756,3297.5,3296.9,0.93701527]
[1768396730739,0.08502756,3297.1,3296.7,0.416]
[1768396731051,0.08502756,3297.1,3296.4,4.37489403]
[1768396731433,0.08502756,3297.1,3296.5,0.92535678]
[1768396732435,0.08502756,3297.1,3296.0,3.03395685]
[1768396732764,1.05821581,3297.1,3296.2,3.95912331]
[1768396733059,1.05821581,3296.9,3296.1,3.03386664]
[1768396733263,1.05821581,3296.9,3296.2,0.416]
[1768396733957,1.05821581,3296.9,3296.2,3.44978939]
[1768396734167,1.05821581,3296.9,3296.1,4.37522375]
[1768396734364,1.05821581,3296.9,3296.2,3.0337902]
[1768396734936,3.03324435,3296.8,3296.2,3.95914698]
[1768396735136,0.002,3296.6,3296.2,3.95914698]
[1768396735532,0.002,3296.6,3296.2,0.92535678]
[1768396736444,0.002,3296.6,3296.3,0.92535678]
[1768396736648,3.03516556,3296.9,3296.4,0.92535678]
[1768396737457,0.002,3296.9,3296.4,0.92535678]
[1768396738471,1.05821581,3296.8,3295.8,0.92535678]
[1768396738670,1.05821581,3296.8,3295.8,0.7737559]
[1768396738671,0.08502756,3296.7,3295.8,0.7737559]
[1768396738840,1.05821581,3296.7,3295.6,3.95966237]
[1768396739040,1.05821581,3296.7,3295.7,3.03423465]
[1768396739239,1.05821581,3296.7,3295.8,0.416]
[1768396739463,6.06722484,3296.4,3295.7,0.92535678]
[1768396739662,6.06722484,3296.4,3295.8,0.416]
[1768396739868,7.04041309,3296.4,3295.8,0.416]
[1768396742366,7.04041309,3296.4,3295.6,0.92535678]
[1768396742566,7.04041309,3296.4,3295.8,0.416]
[1768396742768,0.97318825,3296.3,3295.6,0.92535678]
[1768396742956,0.97318825,3296.3,3295.8,0.416]
[1768396743855,0.97318825,3296.3,3295.7,0.416]
[1768396745478,3.03379649,3296.2,3295.7,0.416]
[1768396747881,0.97318825,3296.2,3295.7,0.416]
[1768396748373,7.04041309,3296.4,3295.7,0.416]
[1768396748578,7.04041309,3296.4,3296.0,0.001]
[1768396748780,0.97318825,3296.3,3296.0,0.001]
[1768396749855,6.06759298,3296.2,3296.0,0.001]
[1768396750963,3.03379649,3296.2,3296.0,0.001]
[1768396758502,3.03370445,3296.3,3296.0,0.001]
[1768396760115,3.93450009,3296.3,3296.0,0.001]
[1768396761301,3.93650009,3296.3,3296.0,0.001]
[1768396762994,6.97020454,3296.3,3296.0,0.001]
[1768396763195,7.74096856,3296.3,3296.0,0.001]
[1768396764001,0.92640275,3296.2,3295.0,0.92311589]
[1768396764207,0.92640275,3296.2,3295.0,0.001]
[1768396764392,0.92640275,3296.2,3295.1,0.416]
[1768396764587,9.87387737,3296.3,3295.1,1.33811589]
[1768396764588,0.92640275,3296.0,3295.1,1.33811589]
[1768396764805,0.92640275,3296.0,3295.3,3.95671196]
[1768396765109,0.002,3296.3,3295.4,0.92211589]
[1768396765398,0.002,3296.3,3295.6,6.44317611]
[1768396765573,0.002,3296.3,3295.7,0.64735205]
[1768396766165,0.002,3296.3,3295.8,3.03416469]
[1768396766870,0.002,3296.3,3295.9,0.03034072]
[1768396767101,0.002,3296.3,3295.8,3.03416469]
[1768396767823,0.92640275,3296.2,3295.1,0.92096492]
[1768396768111,3.96029128,3296.1,3295.5,0.416]
[1768396769011,0.92640275,3296.0,3295.3,3.03458772]
[1768396769172,0.92640275,3296.0,3295.4,0.416]
[1768396769699,0.92640275,3296.0,3295.0,0.001]
[1768396769998,0.92640275,3295.8,3295.0,3.4518511]
[1768396770395,3.9606595,3295.7,3295.0,3.4518511]
[1768396771693,0.92640275,3295.6,3294.6,0.92211589]
[1768396771991,0.92640275,3295.6,3294.8,3.95715652]
[1768396772199,0.92640275,3295.6,3294.9,3.45098561]
[1768396772508,3.96080541,3295.6,3295.0,3.03489083]
[1768396772694,3.96080541,3295.6,3295.0,0.03034901]
[1768396773096,3.96080541,3295.6,3294.9,3.45096598]
[1768396773603,3.96080541,3295.6,3295.3,0.001]
[1768396773806,0.39608054,3295.5,3295.3,0.001]
[1768396774409,3.03440266,3295.6,3295.3,0.001]
[1768396774987,3.03425675,3295.7,3295.3,0.001]
[1768396777011,0.92840275,3296.0,3295.3,0.001]
[1768396777574,3.96051737,3295.9,3295.3,0.001]
[1768396778319,3.46051737,3295.9,3295.3,0.001]
[1768396780781,0.92640275,3295.8,3295.3,0.001]
[1768396782312,3.96057788,3295.8,3295.3,0.001]
[1768396783816,3.96057788,3295.8,3295.3,3.03562507]
[1768396784318,3.96057788,3295.8,3295.3,0.001]
[1768396785711,0.92640275,3295.7,3295.3,0.001]
[1768396785913,0.002,3295.5,3295.3,0.001]
[1768396791920,0.002,3295.8,3295.3,0.001]
[1768396792127,0.98486392,3296.6,3295.8,0.97145742]
[1768396792432,0.98486392,3296.6,3295.9,0.416]
[1768396792992,0.98486392,3296.6,3295.9,6.90851764]
[1768396793423,0.98486392,3296.6,3295.9,1.38745742]
[1768396793622,0.98486392,3296.6,3295.9,2.23113072]
[1768396793941,0.98486392,3296.8,3296.0,0.97145742]
[1768396794344,0.98486392,3296.8,3296.1,7.03923448]
[1768396795043,0.002,3297.3,3296.4,0.97145742]
[1768396795044,0.98686392,3297.2,3296.4,0.97145742]
[1768396795348,0.98686392,3297.2,3296.5,0.416]
[1768396795349,4.01975481,3297.2,3296.5,0.416]
[1768396796544,4.01975481,3297.2,3296.5,3.44944725]
[1768396796722,4.01975481,3297.2,3296.5,3.77722246]
[1768396799019,0.002,3296.8,3296.5,3.77722246]
[1768396799420,0.002,3296.8,3296.6,0.97145742]
[1768396800329,0.002,3296.8,3296.5,0.32777521]
[1768396800531,0.002,3296.8,3296.6,0.416]
[1768396801953,0.002,3296.8,3296.6,3.44941957]
[1768396802251,0.002,3296.8,3296.6,4.09772238]
[1768396802836,0.002,3296.8,3296.6,1.06430281]
[1768396804168,0.002,3296.8,3296.7,14.5]
[1768396804368,3.03491072,3297.2,3296.7,14.5]
[1768396804537,0.002,3297.2,3296.7,15.47145742]
[1768396804736,0.002,3297.2,3296.7,15.89179121]
[1768396804944,0.002,3297.2,3296.7,14.92033379]
[1768396805945,0.002,3297.2,3296.8,3.03324435]
[1768396807268,0.002,3297.2,3296.9,14.5]
[1768396808442,0.002,3297.6,3297.1,0.97145742]
[1768396809042,0.002,3297.6,3297.2,14.916]
[1768396809247,0.002,3297.6,3297.3,0.416]
[1768396810646,3.7213215,3297.7,3297.3,0.416]
[1768396811191,3.7213215,3297.7,3297.2,14.5]
[1768396811396,3.7213215,3297.7,3297.3,0.416]
[1768396812375,6.75379145,3297.7,3297.3,0.416]
[1768396812546,3.7213215,3297.7,3297.3,0.416]
[1768396813678,0.98486392,3297.6,3295.9,0.7154433]
[1768396813993,0.98486392,3297.4,3296.5,0.97145742]
[1768396814145,0.98486392,3297.4,3296.6,14.5]
[1768396814470,0.98486392,3297.2,3296.6,14.5]
[1768396814669,0.98486392,3297.0,3296.6,14.5]
[1768396814871,0.98486392,3297.0,3296.7,0.416]
[1768396815373,0.67535727,3297.7,3296.7,0.416]
[1768396815374,4.01764831,3297.3,3296.7,0.416]
[1768396815584,3.44899746,3298.2,3296.8,0.97145742]
[1768396815585,0.98486392,3297.9,3296.8,0.97145742]
[1768396815745,0.98486392,3297.7,3296.9,0.97145742]
[1768396816679,0.98486392,3297.7,3296.3,5.5202837]
[1768396816680,0.98486392,3297.3,3297.0,0.416]
[1768396816851,1.01520203,3297.3,3296.3,0.97145742]
[1768396817048,1.01520203,3297.3,3296.4,14.916]
[1768396817266,0.98486392,3297.3,3296.5,0.0303352]
[1768396817588,0.98486392,3297.3,3296.5,0.97145742]
[1768396818059,0.98486392,3297.3,3296.6,14.5]
[1768396818985,4.01771547,3297.3,3296.6,17.53336191]
[1768396820074,4.01771547,3297.3,3296.6,14.5]
[1768396820251,0.93076934,3297.2,3296.6,17.53342119]
[1768396821380,3.96366646,3297.2,3296.6,17.53342119]
[1768396822283,3.03289712,3297.2,3296.6,17.53342119]
[1768396822683,0.002,3296.9,3296.6,17.53342119]
[1768396824392,0.002,3297.2,3296.7,0.95654988]
[1768396824561,0.002,3297.2,3296.9,0.95654988]
[1768396825574,0.002,3297.2,3297.0,3.03306035]
[1768396827559,0.002,3297.2,3297.0,6.0661207]
[1768396827756,0.99420823,3298.0,3297.1,0.95654988]
[1768396827953,0.03233811,3298.2,3297.2,1.37254988]
[1768396827954,4.02649217,3297.9,3297.2,1.37254988]
[1768396828186,0.99420823,3297.8,3297.2,14.5]
[1768396828391,0.99420823,3297.8,3297.3,0.416]
[1768396829491,0.99420823,3297.7,3297.2,17.53287352]
[1768396829693,0.99420823,3297.7,3296.6,3.03339794]
[1768396829694,1.02454634,3297.7,3297.3,0.266]
[1768396830197,0.99420823,3297.7,3297.3,0.266]
[1768396830358,3.03238925,3297.8,3297.3,0.266]
[1768396831299,4.02648529,3297.9,3297.3,0.266]
[1768396832199,4.02648529,3297.9,3297.3,3.2987544]
[1768396832574,0.002,3298.2,3297.3,3.2987544]
[1768396832575,3.03214441,3298.0,3297.3,3.2987544]
[1768396832778,3.06429717,3298.2,3297.4,0.95654988]
[1768396832779,0.002,3298.2,3297.4,0.95654988]
[1768396833096,0.002,3298.6,3297.3,14.88460688]
[1768396833097,0.002,3298.6,3298.0,0.95654988]
[1768396833295,0.002,3298.6,3298.1,0.416]
[1768396833296,0.99420823,3298.5,3298.1,0.416]
[1768396833678,3.03359417,3298.6,3298.1,0.416]
[1768396833880,3.73951734,3298.6,3298.1,0.416]
[1768396834194,0.002,3298.6,3298.2,0.95654988]
[1768396834797,3.03360239,3298.6,3298.2,0.95654988]
[1768396835292,0.002,3298.6,3298.1,0.416]
[1768396835481,0.002,3298.6,3298.1,3.44802804]
[1768396835861,0.002,3298.6,3298.1,6.48007679]
[1768396836264,0.99420823,3298.9,3298.3,3.0318649]
[1768396837200,0.002,3299.0,3298.3,3.0318649]
[1768396837788,0.002,3299.0,3298.4,0.95654988]
[1768396837990,0.99420823,3298.9,3297.9,14.5]
[1768396838302,0.99420823,3298.7,3297.9,15.45654988]
[1768396838470,0.40256136,3298.6,3298.0,0.416]
[1768396838775,0.40256136,3298.6,3298.0,4.40468488]
[1768396838984,3.03140535,3298.8,3298.0,4.40468488]
[1768396839675,3.03140535,3298.8,3298.0,3.98868488]
[1768396840005,4.02554682,3298.9,3298.1,0.416]
[1768396840216,4.02554682,3298.9,3298.2,3.03195682]
[1768396840375,3.03133859,3298.9,3298.2,3.9885067]
[1768396840777,3.03133859,3298.9,3298.3,0.95654988]
[1768396842005,0.002,3299.0,3298.3,0.95654988]
[1768396842206,0.002,3299.0,3298.5,0.95654988]
[1768396842394,0.002,3299.0,3298.6,1.37254988]
[1768396842710,0.002,3299.0,3298.6,0.416]
[1768396844772,3.03094595,3299.3,3298.6,3.44755757]
[1768396844973,0.08502756,3301.1,3298.6,3.44755757]
[1768396844974,0.99420823,3301.7,3300.7,0.1581]
[1768396845178,0.10796186,3302.5,3301.3,5.5202837]
[1768396845179,3.02810077,3302.4,3301.3,5.5202837]
[1768396845435,0.0229343,3302.5,3301.4,15.87254988]
[1768396845577,0.0229343,3302.5,3301.5,6.89283358]
[1768396845785,0.08502756,3303.5,3301.5,6.89283358]
[1768396845786,0.0059898,3304.5,3303.8,0.95654988]
[1768396846092,0.99420823,3305.1,3303.0,6.61800938]
[1768396846298,0.08502756,3305.5,3302.6,24.12309816]
[1768396846299,0.08502756,3303.2,3302.6,24.12309816]
[1768396846517,0.08502756,3303.1,3302.7,6.56751668]
[1768396846719,0.08502756,3304.0,3302.7,9.4281681]
[1768396847031,0.08502756,3304.1,3302.8,1.37254988]
[1768396847212,0.99420823,3304.6,3302.8,1.37254988]
[1768396847528,0.99420823,3304.6,3302.7,9.08341234]
[1768396847529,0.08502756,3302.9,3301.6,0.96851881]
[1768396847740,0.08502756,3302.9,3302.2,3.02824774]
[1768396847943,0.08502756,3302.9,3301.8,3.02862401]
[1768396847944,1.07923579,3303.2,3302.3,3.44310351]
[1768396848221,0.99420823,3302.9,3301.6,0.01196893]
[1768396848389,0.08502756,3303.3,3301.6,0.01196893]
[1768396848390,0.99420823,3303.3,3301.6,0.01196893]
[1768396848583,0.99420823,3303.3,3301.7,6.47248552]
[1768396848818,0.002,3302.8,3301.8,0.64844545]
[1768396849016,0.99620823,3302.8,3301.8,0.64844545]
[1768396849216,0.99620823,3302.8,3300.5,0.95654988]
[1768396849217,0.99420823,3302.6,3300.5,0.95654988]
[1768396849418,1.07923579,3302.5,3301.1,3.02929113]
[1768396849606,1.07923579,3302.5,3300.5,0.95654988]
[1768396849607,0.08502756,3302.4,3301.0,3.02931511]
[1768396849916,1.07923579,3302.4,3301.0,3.02934432]
[1768396850120,1.07923579,3302.4,3301.1,3.44428592]
[1768396850332,0.99420823,3302.4,3301.1,0.75942859]
[1768396850537,4.02237518,3302.4,3301.2,3.0292015]
[1768396851428,0.002,3302.8,3301.2,3.0292015]
[1768396851429,0.002,3302.8,3301.2,6.058403]
[1768396851631,3.02973466,3302.8,3301.2,6.058403]
[1768396851947,6.05746932,3302.8,3301.3,0.415]
[1768396852128,0.91009246,3302.7,3301.2,6.058403]
[1768396852312,0.91009246,3302.5,3301.3,0.415]
[1768396852514,3.93818815,3302.5,3301.4,3.02901799]
[1768396853145,3.93818815,3302.5,3301.4,6.05803598]
[1768396853315,0.70525893,3302.6,3301.4,6.05803598]
[1768396853513,0.17005512,3302.7,3301.5,0.415]
[1768396854543,0.17005512,3302.7,3301.6,6.472669]
[1768396854732,0.17005512,3302.7,3301.7,0.415]
[1768396855347,0.17005512,3302.7,3301.8,0.415]
[1768396855646,0.17005512,3302.7,3301.6,6.057669]
[1768396855814,0.31998028,3302.6,3301.7,0.265]
[1768396856016,0.17005512,3302.7,3301.7,0.265]
[1768396856715,0.17005512,3302.7,3301.8,6.05730206]
[1768396857020,0.17005512,3302.7,3301.9,0.415]
[1768396857614,2.98702417,3303.4,3301.9,1.42242768]
[1768396857866,6.01420828,3303.4,3301.9,1.42242768]
[1768396858026,0.60142083,3303.3,3302.0,0.4627963]
[1768396858427,0.60142083,3303.3,3302.1,0.03028375]
[1768396858625,3.0273674,3303.2,3302.2,3.02828417]
[1768396858853,3.0273674,3303.2,3302.3,0.03028192]
[1768396859158,3.0273674,3303.2,3302.4,0.415]
[1768396859326,3.68894864,3303.2,3302.4,0.415]
[1768396859528,3.0273674,3303.2,3302.5,0.415]
[1768396859856,3.0273674,3303.2,3302.6,0.415]
[1768396860559,6.0547348,3303.2,3302.2,3.02828417]
[1768396860760,6.96464396,3303.3,3302.3,3.44316305]
[1768396861134,0.91009246,3303.8,3302.4,0.030281]
[1768396861332,0.39368185,3303.7,3302.4,0.030281]
[1768396861747,0.39368185,3303.7,3302.3,3.47344497]
[1768396862156,0.91009246,3303.6,3302.3,6.50163744]
[1768396862357,0.91009246,3303.6,3302.3,6.47135552]
[1768396862659,0.91009246,3303.6,3302.3,6.50163744]
[1768396863060,6.9642774,3303.5,3302.4,0.415]
[1768396863377,0.91009246,3303.3,3302.5,0.415]
[1768396864273,0.69642774,3303.4,3302.2,0.415]
[1768396864274,0.91009246,3302.8,3302.2,0.415]
[1768396864474,0.08502756,3303.2,3302.1,0.415]
[1768396864666,0.91009246,3303.2,3302.1,0.415]
[1768396865377,0.91009246,3303.0,3301.6,3.02874493]
[1768396865679,0.91009246,3302.8,3301.6,3.02876609]
[1768396865975,0.91009246,3302.8,3301.7,3.4437222]
[1768396866300,0.91009246,3302.8,3301.6,3.02879813]
[1768396866448,0.91009246,3302.8,3301.7,0.415]
[1768396866792,0.99512002,3302.8,3301.5,0.001]
[1768396866960,0.91009246,3302.6,3301.6,0.415]
[1768396867282,0.99512002,3302.6,3299.7,3.03049991]
[1768396867481,0.99512002,3302.6,3300.7,6.05930297]
[1768396867482,0.99512002,3302.4,3300.7,6.05930297]
[1768396867692,0.99512002,3302.4,3300.8,0.03029568]
[1768396867862,0.91009246,3302.2,3300.8,0.03029568]
[1768396868378,0.91009246,3302.2,3300.9,0.415]
[1768396868577,0.99512002,3302.2,3301.0,0.415]
[1768396869094,0.91009246,3301.9,3300.5,3.02976653]
[1768396869247,0.91009246,3301.9,3300.6,0.415]
[1768396869447,0.91009246,3301.7,3300.6,0.415]
[1768396869646,0.91009246,3301.5,3300.6,0.415]
[1768396870258,0.91009246,3301.9,3300.7,0.0302966]
[1768396870466,0.91009246,3302.3,3300.7,0.0302966]
[1768396870780,3.02829961,3302.2,3300.7,0.0302966]
[1768396870979,6.05659922,3302.2,3300.7,0.0302966]
[1768396871283,0.69666917,3302.1,3300.9,0.97714209]
[1768396871585,6.05583478,3302.6,3301.1,6.05858652]
[1768396871758,6.05583478,3302.6,3301.2,0.44529201]
[1768396872161,9.99384463,3302.6,3301.2,0.44529201]
[1768396872483,0.99512002,3302.5,3301.0,3.02936326]
[1768396872661,0.99512002,3302.5,3301.1,0.415]
[1768396872862,0.91009246,3302.3,3301.1,0.415]
[1768396873583,0.91009246,3302.1,3301.1,3.4442371]
[1768396873771,0.91009246,3302.1,3301.2,0.415]
[1768396874884,0.91009246,3302.1,3301.0,3.02935039]
[1768396875086,0.99512002,3302.1,3300.8,0.03129568]
[1768396875293,0.99512002,3301.9,3300.8,0.001]
[1768396875473,0.99512002,3301.9,3300.9,0.415]
[1768396875674,0.91009246,3301.7,3300.9,0.415]
[1768396876800,0.91009246,3301.7,3300.8,0.416]
[1768396876971,0.91009246,3301.5,3300.8,0.416]
[1768396877295,0.91009246,3301.5,3300.6,0.415]
[1768396877478,0.91009246,3301.5,3300.2,3.03010151]